bitfinex/quotes_BTCUSD_20210101
["timestamp","ask_amount","ask_price","bid_price","bid_amount"]
[1609530460896,0.25730001,29126.0,29120.0,0.32]
[1609530461097,0.363424,29125.0,29120.0,0.3440149]
[1609530461292,0.363424,29125.0,29120.0,0.0240149]
[1609530461495,0.363424,29125.0,29119.0,0.6632149]
[1609530461691,0.353424,29125.0,29119.0,0.6632149]
[1609530464240,0.51460001,29124.0,29119.0,0.6632149]
[1609530464441,0.363421,29123.0,29119.0,0.6632149]
[1609530464840,0.51460001,29124.0,29119.0,0.6632149]
[1609530465743,0.363421,29123.0,29119.0,0.6632149]
[1609530469797,0.358421,29123.0,29119.0,0.6632149]
[1609530470802,0.363429,29130.0,29119.0,0.6632149]
[1609530471005,0.205,29129.0,29119.0,0.6632149]
[1609530471203,0.010059,29128.0,29119.0,0.6632149]
[1609530471801,0.696679,29128.0,29119.0,0.6632149]
[1609530472005,0.51460001,29125.0,29119.0,0.6632149]
[1609530472200,0.363429,29124.0,29119.0,0.6632149]
[1609530480098,0.18723076,29127.0,29120.0,1.08649]
[1609530480304,0.97372,29128.0,29120.0,1.9332239]
[1609530480499,0.97372,29128.0,29121.0,0.363429]
[1609530480699,0.97372,29128.0,29121.0,0.2240149]
[1609530480896,0.68662,29128.0,29122.0,0.08]
[1609530481166,0.68662,29128.0,29122.0,0.1040149]
[1609530481367,0.68662,29128.0,29123.0,0.558429]
[1609530481668,0.68662,29128.0,29123.0,0.5824439]
[1609530482990,0.68662,29128.0,29124.0,0.5145]
[1609530483188,0.68662,29128.0,29125.0,0.205]
[1609530483393,0.363429,29127.0,29125.0,0.2290149]
[1609530483589,0.363429,29127.0,29125.0,0.0240149]
[1609530483991,0.68662,29128.0,29124.0,0.5385149]
[1609530485189,0.363429,29127.0,29124.0,0.5385149]
[1609530489116,0.010065,29126.0,29124.0,0.5385149]
[1609530490918,0.27803345,29133.0,29124.0,0.5385149]
[1609530491121,0.010065,29132.0,29124.0,0.5385149]
[1609530491319,0.15,29131.0,29124.0,0.5385149]
[1609530491521,0.010065,29130.0,29124.0,0.5385149]
[1609530493923,0.50361258,29126.0,29124.0,0.5368829]
[1609530494366,0.50361258,29126.0,29125.0,0.29]
[1609530494572,0.51367758,29126.0,29125.0,0.3140149]
[1609530497073,0.57604179,29135.0,29125.0,0.3042329]
[1609530497270,0.51450001,29133.0,29125.0,0.3042329]
[1609530497474,0.51450001,29133.0,29125.0,0.2240149]
[1609530497772,0.51450001,29133.0,29125.0,0.0240149]
[1609530498005,0.51450001,29133.0,29124.0,0.0240149]
[1609530498170,0.51450001,29133.0,29124.0,0.2]
[1609530498370,0.51450001,29133.0,29124.0,0.2240149]
[1609530498770,0.50950001,29133.0,29124.0,0.2240149]
[1609530499274,0.50950001,29133.0,29125.0,0.165]
[1609530499275,0.25730001,29131.0,29125.0,0.165]
[1609530499472,0.25730001,29131.0,29125.0,0.1890149]
[1609530499682,0.00208547,29140.0,29125.0,0.3890149]
[1609530499889,1.44578581,29140.0,29126.0,0.42846812]
[1609530500093,0.51450001,29133.0,29126.0,0.4190149]
[1609530500288,0.51450001,29133.0,29126.0,0.2240149]
[1609530501087,0.51450001,29133.0,29126.0,0.0240149]
[1609530501287,0.51450001,29133.0,29125.0,0.2240149]
[1609530501589,0.51450001,29133.0,29127.0,0.01091975]
[1609530502592,0.343,29137.0,29127.0,0.21091975]
[1609530502789,0.343,29137.0,29127.0,0.23493465]
[1609530502987,0.343,29137.0,29127.0,0.03493465]
[1609530503194,0.51450001,29136.0,29127.0,0.11493465]
[1609530503495,0.44311689,29138.0,29128.0,0.47]
[1609530503689,0.0002,29138.0,29129.0,0.676]
[1609530503890,0.7889,29139.0,29129.0,0.9000149]
[1609530504293,1.23128717,29139.0,29129.0,0.86686958]
[1609530504498,1.23128717,29139.0,29129.0,0.66686958]
[1609530504499,0.17,29138.0,29129.0,0.66686958]
[1609530505092,0.68460001,29138.0,29129.0,1.18126958]
[1609530505398,0.51460001,29138.0,29130.0,1.0]
[1609530505623,0.7839,29139.0,29131.0,1.9]
[1609530505925,0.7839,29139.0,29132.0,2.11786]
[1609530506118,0.7839,29139.0,29133.0,1.2]
[1609530506416,0.7839,29139.0,29134.0,1.0]
[1609530506617,0.00208363,29145.0,29134.0,0.0240149]
[1609530506926,0.5143,29144.0,29135.0,0.43]
[1609530507215,0.5143,29144.0,29135.0,0.4540149]
[1609530507216,0.77150001,29144.0,29135.0,0.4540149]
[1609530507414,0.77150001,29144.0,29135.0,0.2240149]
[1609530507617,6.0,29143.0,29135.0,0.2240149]
[1609530508114,6.0,29143.0,29135.0,0.0240149]
[1609530508516,6.0,29143.0,29134.0,0.60613241]
[1609530508715,0.205,29142.0,29134.0,0.60613241]
[1609530509302,0.2052,29142.0,29134.0,0.60613241]
[1609530509461,0.0002,29142.0,29134.0,0.60613241]
[1609530511339,0.77160002,29141.0,29134.0,0.52613241]
[1609530511538,0.0002,29140.0,29134.0,0.03493241]
[1609530511932,0.0002,29140.0,29134.0,0.01091751]
[1609530512141,0.16,29139.0,29134.0,0.01091751]
[1609530512340,0.0002,29141.0,29134.0,0.01091751]
[1609530512735,0.7411,29142.0,29134.0,0.01091751]
[1609530513051,0.68590001,29138.0,29134.0,0.01091751]
[1609530513255,0.94340002,29138.0,29134.0,0.01091751]
[1609530513450,0.24,29137.0,29134.0,0.01091751]
[1609530513856,5.95,29136.0,29129.0,1.5]
[1609530514253,0.335,29135.0,29129.0,1.5]
[1609530514459,0.335,29134.0,29129.0,1.5]
[1609530514655,0.25730001,29133.0,29129.0,1.5]
[1609530514855,0.25730001,29133.0,29129.0,1.5230307]
[1609530515253,0.265,29132.0,29129.0,1.5230307]
[1609530516452,0.205,29131.0,29129.0,1.5230307]
[1609530516754,0.51450001,29130.0,29129.0,1.5230307]
[1609530518778,0.25730001,29133.0,29129.0,1.5230307]
[1609530518979,0.51440001,29132.0,29130.0,0.33]
[1609530519280,0.51440001,29132.0,29130.0,0.3530307]
[1609530520679,0.50940001,29136.0,29130.0,0.3530307]
[1609530520879,0.50940001,29136.0,29131.0,0.31]
[1609530521079,0.50940001,29136.0,29131.0,0.3330307]
[1609530521480,0.61403973,29132.0,29131.0,0.3330307]
[1609530522078,1.51403973,29132.0,29131.0,0.3330307]
[1609530522682,1.51403973,29132.0,29131.0,0.0230307]
[1609530522879,1.50903973,29132.0,29130.0,0.0230307]
[1609530523079,1.50903973,29132.0,29129.0,1.5230307]
[1609530524080,2.01853974,29132.0,29129.0,1.5230307]
[1609530525341,2.01853974,29132.0,29129.0,1.2730307]
[1609530525540,1.11853974,29132.0,29129.0,1.2730307]
[1609530526144,1.11353974,29132.0,29129.0,1.2730307]
[1609530527744,0.86353974,29132.0,29129.0,1.2730307]
[1609530527942,0.165,29131.0,29129.0,1.2730307]
[1609530528568,0.85853974,29132.0,29129.0,1.37594839]
[1609530528768,0.60853974,29132.0,29129.0,1.37594839]
[1609530529179,0.09403973,29132.0,29130.0,1.44339]
[1609530529479,0.09403973,29132.0,29131.0,1.80339]
[1609530529878,0.09403973,29132.0,29131.0,1.85988882]
[1609530530678,0.09403973,29132.0,29131.0,2.82558882]
[1609530531072,0.09403973,29132.0,29131.0,2.62558882]
[1609530531675,0.09403973,29132.0,29131.0,2.82558882]
[1609530532270,0.09403973,29132.0,29131.0,2.62558882]
[1609530532474,0.09403973,29132.0,29131.0,2.82558882]
[1609530533176,0.09403973,29132.0,29131.0,2.88822465]
[1609530533375,0.09403973,29132.0,29131.0,2.68822465]
[1609530535297,0.09403973,29132.0,29131.0,2.88822465]
[1609530535498,0.09403973,29132.0,29131.0,1.88822465]
[1609530535901,0.09403973,29132.0,29131.0,1.5921207]
[1609530536096,0.09403973,29132.0,29131.0,1.7921207]
[1609530541135,0.09403973,29132.0,29131.0,1.5921207]
[1609530541336,0.09403973,29132.0,29131.0,1.7921207]
[1609530542134,0.09403973,29132.0,29131.0,1.4287307]
[1609530542738,0.09403973,29132.0,29131.0,1.7921207]
[1609530544241,0.07282994,29132.0,29131.0,1.7921207]
[1609530544957,0.07282994,29132.0,29131.0,1.4287307]
[1609530545662,0.07282994,29132.0,29131.0,1.7921207]
[1609530545663,0.03382743,29132.0,29131.0,1.7921207]
[1609530546162,0.03382743,29132.0,29131.0,1.9921207]
[1609530548965,0.03382743,29132.0,29131.0,2.02558882]
[1609530549466,0.03382743,29132.0,29131.0,1.9921207]
[1609530550892,0.03382743,29132.0,29131.0,1.7921207]
[1609530552888,0.03382743,29132.0,29131.0,1.5921207]
[1609530553591,0.03382743,29132.0,29131.0,1.7921207]
[1609530553794,0.03382743,29132.0,29131.0,1.5921207]
[1609530554359,0.03382743,29132.0,29131.0,1.2287307]
[1609530555418,0.13382743,29132.0,29131.0,0.4630307]
[1609530555824,6.88382743,29132.0,29131.0,0.0230307]
[1609530556261,6.78382743,29132.0,29130.0,0.08566463]
[1609530556459,6.285,29131.0,29130.0,0.08566463]
[1609530556659,6.185,29131.0,29130.0,0.08566463]
[1609530557359,6.285,29131.0,29130.0,0.08566463]
[1609530557754,6.43820921,29131.0,29130.0,0.08566463]
[1609530557954,6.285,29131.0,29130.0,0.08566463]
[1609530559059,0.435,29131.0,29130.0,0.08566463]
[1609530559264,0.1,29131.0,29130.0,0.0230307]
[1609530559461,0.1,29131.0,29129.0,1.2730307]
[1609530559658,0.1,29131.0,29129.0,1.2432307]
[1609530559862,1.96450001,29130.0,29129.0,1.2432307]
[1609530560088,2.27450001,29130.0,29129.0,1.2432307]
[1609530560687,0.82450001,29130.0,29129.0,1.2432307]
[1609530560891,0.51450001,29130.0,29129.0,1.2432307]
[1609530561497,0.25730001,29131.0,29129.0,1.33640902]
[1609530561701,0.03382743,29132.0,29130.0,1.44339]
[1609530561898,0.03382743,29132.0,29131.0,2.73]
[1609530562096,0.03382743,29132.0,29131.0,3.3164207]
[1609530562290,0.03382743,29132.0,29131.0,1.0664207]
[1609530562993,0.03382743,29132.0,29131.0,1.1464207]
[1609530565387,0.03382743,29132.0,29131.0,1.14450676]
[1609530565925,0.03382743,29132.0,29131.0,0.9464207]
[1609530566223,0.03382743,29132.0,29131.0,0.5830307]
[1609530567925,0.03382743,29132.0,29131.0,0.5030307]
[1609530568531,4.53382743,29132.0,29131.0,0.0230307]
[1609530568738,4.43382743,29132.0,29130.0,0.0230307]
[1609530568941,5.25,29131.0,29129.0,1.2432307]
[1609530569134,5.535,29130.0,29129.0,1.2202]
[1609530569400,5.535,29130.0,29129.0,1.2432307]
[1609530569762,5.69012315,29130.0,29129.0,1.2432307]
[1609530570866,5.535,29130.0,29129.0,1.2432307]
[1609530571501,0.335,29130.0,29129.0,1.2432307]
[1609530571804,0.03382743,29132.0,29129.0,1.33640902]
[1609530572599,0.03382743,29132.0,29129.0,1.41640902]
[1609530573895,0.03382743,29132.0,29129.0,1.33640902]
[1609530574102,0.03382743,29132.0,29130.0,0.205]
[1609530574300,0.03382743,29132.0,29130.0,0.2280307]
[1609530575136,6.00512315,29131.0,29130.0,0.0230307]
[1609530575536,6.00512315,29131.0,29129.0,1.2432307]
[1609530577532,5.85,29131.0,29129.0,1.2432307]
[1609530577832,6.00512315,29131.0,29129.0,1.2432307]
[1609530578029,8.07494528,29130.0,29129.0,1.2432307]
[1609530578236,8.38421843,29130.0,29129.0,1.2432307]
[1609530578839,8.57055515,29130.0,29129.0,0.9002307]
[1609530579431,9.57055515,29130.0,29129.0,0.9002307]
[1609530581151,9.57055515,29130.0,29129.0,7e-07]
[1609530581351,9.57055515,29130.0,29117.0,0.6887]
[1609530581560,0.2574,29125.0,29117.0,0.6887]
[1609530581759,0.5147,29124.0,29117.0,0.6887]
[1609530583357,0.18,29123.0,29117.0,0.6887]
[1609530586419,0.24,29122.0,29117.0,0.6887]
[1609530586623,0.5147,29124.0,29117.0,0.6887]
[1609530586822,0.5147,29120.0,29117.0,0.6887]
[1609530589228,0.9386,29125.0,29118.0,1.05488485]
[1609530589533,0.68629,29130.0,29120.0,0.56339]
[1609530589733,0.68629,29130.0,29121.0,1.82314182]
[1609530589929,0.68629,29130.0,29122.0,2.0605506]
[1609530590160,0.68629,29130.0,29126.0,0.05488485]
[1609530590457,0.68629,29130.0,29127.0,1.36339]
[1609530590656,0.68629,29130.0,29129.0,0.41827485]
[1609530590850,0.68629,29130.0,29129.0,0.49827485]
[1609530591058,0.68629,29130.0,29129.0,0.71827485]
[1609530591263,0.68629,29130.0,29129.0,0.49827485]
[1609530591564,0.68629,29130.0,29129.0,0.08]
[1609530591766,0.68629,29130.0,29125.0,0.7659]
[1609530592558,0.68629,29130.0,29125.0,0.82078485]
[1609530592765,0.68629,29130.0,29126.0,0.355]
[1609530592957,0.68629,29130.0,29126.0,0.555]
[1609530593165,0.68629,29130.0,29126.0,0.355]
[1609530594054,0.68129,29130.0,29126.0,0.355]
[1609530598884,0.68129,29130.0,29127.0,0.255]
[1609530599452,0.68129,29130.0,29125.0,0.6859]
[1609530601641,0.68129,29130.0,29125.0,0.74078485]
[1609530601945,0.68129,29130.0,29125.0,0.73561785]
[1609530602247,0.015027,29129.0,29125.0,0.6859]
[1609530602443,0.015027,29129.0,29126.0,0.335]
[1609530610280,0.015027,29129.0,29127.0,0.25]
[1609530610807,0.015027,29129.0,29127.0,0.26311978]
[1609530611000,0.015027,29129.0,29127.0,0.01311978]
[1609530617283,6.86,29128.0,29127.0,0.01311978]
[1609530617482,6.96,29128.0,29127.0,0.01311978]
[1609530618085,8.61,29128.0,29127.0,0.01311978]
[1609530618290,8.61,29128.0,29127.0,9.78e-06]
[1609530618493,8.61,29128.0,29127.0,0.10351132]
[1609530618689,0.2597715,29127.0,29119.0,0.6429]
[1609530618892,0.1,29125.0,29119.0,0.6429]
[1609530619198,0.9144806,29125.0,29112.0,0.40904108]
[1609530619392,0.8321606,29124.0,29115.0,0.12435444]
[1609530619584,0.2597715,29123.0,29115.0,0.12435444]
[1609530619787,0.3209815,29123.0,29114.0,1.29637182]
[1609530619989,1.0,29121.0,29114.0,1.29637182]
[1609530620610,1.2597715,29121.0,29114.0,1.29637182]
[1609530620810,1.2597715,29121.0,29114.0,1.1721]
[1609530620811,1.07183,29121.0,29114.0,1.1721]
[1609530621013,0.245,29120.0,29114.0,1.1721]
[1609530621216,1.0,29119.0,29114.0,1.27462763]
[1609530621417,1.2597715,29119.0,29114.0,1.1721]
[1609530621724,1.0,29119.0,29116.0,0.36339]
[1609530621920,1.0,29119.0,29118.0,1.71339]
[1609530622117,1.0,29119.0,29118.0,1.96117]
[1609530622919,0.7649,29125.0,29118.0,1.59778]
[1609530623220,1.0,29123.0,29120.0,0.36339]
[1609530623413,1.0,29123.0,29121.0,1.29]
[1609530623618,1.0,29123.0,29122.0,1.0]
[1609530623822,0.696317,29127.0,29122.0,1.0]
[1609530624114,0.696317,29127.0,29123.0,0.31]
[1609530624312,0.696317,29127.0,29124.0,0.225]
[1609530624515,0.696317,29127.0,29124.0,0.39299]
[1609530624714,0.696317,29127.0,29124.0,0.16799]
[1609530625838,0.686317,29127.0,29122.0,0.6692]
[1609530628141,0.686317,29127.0,29123.0,1.73839]
[1609530628339,0.686317,29127.0,29123.0,1.84000006]
[1609530628640,0.686317,29127.0,29123.0,1.73839]
[1609530628842,0.661317,29127.0,29123.0,1.73839]
[1609530629036,0.661317,29127.0,29124.0,0.5]
[1609530630678,0.661317,29127.0,29122.0,0.6692]
[1609530635746,0.661317,29127.0,29120.0,0.4711]
[1609530636154,1.17591701,29127.0,29120.0,0.4711]
[1609530636351,0.49195,29126.0,29120.0,0.4711]
[1609530636645,1.49195,29126.0,29120.0,0.4711]
[1609530637251,1.74935,29126.0,29120.0,0.4711]
[1609530637550,0.335,29125.0,29120.0,0.4711]
[1609530637750,1.0,29124.0,29120.0,0.4711]
[1609530638151,0.5147,29123.0,29120.0,0.4711]
[1609530638649,0.5147,29123.0,29116.0,0.6562]
[1609530638852,1.275,29122.0,29116.0,0.6562]
[1609530639554,1.23929914,29122.0,29116.0,0.6562]
[1609530640548,1.23429914,29122.0,29116.0,0.6562]
[1609530640772,0.19,29121.0,29116.0,0.6562]
[1609530641677,0.19,29121.0,29114.0,0.20489321]
[1609530642373,1.13654914,29122.0,29114.0,0.20489321]
[1609530643076,0.5147,29119.0,29114.0,0.20489321]
[1609530643280,0.5147,29119.0,29114.0,0.08]
[1609530643676,0.5147,29119.0,29114.0,1.08]
[1609530643877,0.5147,29119.0,29115.0,0.33]
[1609530644902,0.5147,29119.0,29114.0,0.08]
[1609530645701,0.5147,29119.0,29114.0,1.08]
[1609530645908,0.5147,29121.0,29114.0,0.08]
[1609530646202,1.0,29120.0,29114.0,0.08]
[1609530646659,0.995,29120.0,29114.0,0.08]
[1609530646963,0.995,29120.0,29110.0,0.2199]
[1609530646964,1.69842006,29119.0,29110.0,0.2199]
[1609530647167,0.48842006,29118.0,29109.0,0.0004]
[1609530647372,0.2597715,29114.0,29108.0,0.2195]
[1609530647565,0.9,29113.0,29108.0,0.2191]
[1609530647768,0.245,29112.0,29108.0,0.2189]
[1609530647963,1.0,29110.0,29108.0,0.2189]
[1609530648400,3.725,29109.0,29108.0,0.2189]
[1609530649392,0.54925728,29109.0,29108.0,0.2189]
[1609530649595,0.225,29109.0,29108.0,0.2189]
[1609530649793,2.625,29109.0,29108.0,0.2189]
[1609530650792,2.89366171,29109.0,29108.0,0.2189]
[1609530650994,2.89366171,29109.0,29108.0,0.1889]
[1609530651601,3.74366171,29109.0,29108.0,0.1789]
[1609530651799,4.74366171,29109.0,29108.0,0.1789]
[1609530651997,3.89366171,29109.0,29108.0,0.1789]
[1609530652897,1.49366171,29109.0,29108.0,0.1789]
[1609530654717,4.59366171,29109.0,29108.0,0.1789]
[1609530655121,8.74366171,29109.0,29108.0,0.1773]
[1609530655327,7.25,29105.0,29104.0,0.0002]
[1609530655537,7.25,29105.0,29102.0,0.0006]
[1609530655538,6.2,29103.0,29102.0,0.0006]
[1609530656224,6.46874731,29103.0,29102.0,0.0006]
[1609530656433,4.2,29102.0,29095.0,0.33322082]
[1609530656629,0.5151,29098.0,29095.0,0.33322082]
[1609530656937,0.6122015,29097.0,29093.0,0.0006]
[1609530657124,0.7822015,29097.0,29093.0,0.0006]
[1609530657625,0.6122015,29097.0,29093.0,0.0006]
[1609530657827,0.10525,29097.0,29095.0,1.0]
[1609530658036,0.05955,29097.0,29096.0,0.47585812]
[1609530658235,1.0,29103.0,29096.0,1.69585812]
[1609530658535,1.0,29102.0,29098.0,0.56339]
[1609530658728,1.0,29102.0,29099.0,1.0]
[1609530658931,1.0,29102.0,29100.0,0.36339]
[1609530659127,1.0,29102.0,29101.0,1.0]
[1609530659331,1.0,29102.0,29101.0,0.16]
[1609530659580,1.0,29102.0,29099.0,0.079]
[1609530661081,1.0,29102.0,29099.0,1.079]
[1609530661485,1.0,29105.0,29099.0,0.079]
[1609530662283,0.225,29104.0,29099.0,0.079]
[1609530662484,1.0,29103.0,29099.0,0.079]
[1609530663988,1.0,29103.0,29095.0,1.2]
[1609530664188,1.0,29103.0,29096.0,1.0]
[1609530664384,1.0,29103.0,29095.0,1.0]
[1609530664591,0.215,29102.0,29094.0,1.3417]
[1609530664790,0.515,29100.0,29094.0,2.3417]
[1609530665093,0.515,29100.0,29095.0,1.0]
[1609530665315,1.0,29103.0,29096.0,0.39685812]
[1609530665509,1.0,29103.0,29097.0,1.36339]
[1609530665710,1.0,29103.0,29098.0,1.22]
[1609530665909,1.0,29103.0,29099.0,1.0]
[1609530666410,1.0,29103.0,29099.0,0.079]
[1609530666609,1.0,29103.0,29099.0,1.079]
[1609530666907,1.0,29103.0,29100.0,0.22]
[1609530667308,1.0,29103.0,29100.0,1.22]
[1609530667509,1.0,29103.0,29100.0,0.22]
[1609530667710,1.0,29103.0,29099.0,0.150495]
[1609530668013,1.0,29105.0,29099.0,0.150495]
[1609530668014,1.0,29105.0,29099.0,1.150495]
[1609530668207,1.0,29105.0,29099.0,1.145495]
[1609530668411,1.0,29105.0,29099.0,0.145495]
[1609530668612,1.0,29105.0,29099.0,1.145495]
[1609530669115,1.0,29105.0,29099.0,0.145495]
[1609530671633,0.995,29105.0,29099.0,0.145495]
[1609530673832,0.995,29105.0,29099.0,0.17520954]
[1609530674799,0.265,29104.0,29099.0,0.17520954]
[1609530675100,1.0,29103.0,29099.0,0.17520954]
[1609530675298,0.515,29101.0,29099.0,0.17520954]
[1609530675899,0.515,29101.0,29099.0,0.071495]
[1609530677645,0.2575,29107.0,29099.0,0.071495]
[1609530677842,0.515,29103.0,29099.0,0.071495]
[1609530678042,0.515,29103.0,29099.0,0.391085]
[1609530678843,0.515,29103.0,29099.0,0.591085]
[1609530679041,0.515,29103.0,29099.0,0.391085]
[1609530680049,0.515,29103.0,29099.0,1.391085]
[1609530680265,0.515,29103.0,29099.0,0.391085]
[1609530680471,0.515,29103.0,29100.0,0.38]
[1609530681076,0.2575,29107.0,29100.0,0.38]
[1609530681972,0.2575,29107.0,29101.0,0.074]
[1609530682173,0.2575,29107.0,29102.0,0.145]
[1609530682571,0.6866,29108.0,29102.0,0.145]
[1609530682877,0.5149,29108.0,29101.0,0.274]
[1609530683073,0.5149,29108.0,29103.0,0.074]
[1609530683670,0.5149,29108.0,29103.0,1.074]
[1609530683879,0.5149,29108.0,29104.0,0.36339]
[1609530684079,0.5149,29111.0,29104.0,1.56339]
[1609530684281,0.5149,29111.0,29105.0,1.7643]
[1609530684483,0.00208732,29112.0,29107.0,0.36339]
[1609530684675,0.00208732,29112.0,29108.0,1.449]
[1609530684874,0.00208732,29112.0,29109.0,0.36339]
[1609530685582,0.00208732,29112.0,29109.0,1.36339]
[1609530685779,0.00208732,29112.0,29110.0,0.524]
[1609530685993,0.00208732,29112.0,29111.0,0.36339]
[1609530686393,0.00208732,29112.0,29110.0,0.074]
[1609530687496,0.00208732,29112.0,29107.0,0.36339]
[1609530688692,0.00208732,29112.0,29108.0,1.0]
[1609530688895,0.00208736,29113.0,29109.0,0.76339]
[1609530689195,0.00208736,29113.0,29109.0,0.4]
[1609530689833,0.5148,29114.0,29109.0,0.395]
[1609530690129,0.48619712,29114.0,29108.0,0.1271]
[1609530691224,0.48619712,29114.0,29108.0,0.08529]
[1609530694367,0.48619712,29114.0,29108.0,0.28529]
[1609530694668,0.48619712,29114.0,29108.0,0.08529]
[1609530695598,0.48619712,29114.0,29107.0,0.11029]
[1609530696397,0.48619712,29114.0,29107.0,0.31029]
[1609530697299,0.48619712,29114.0,29107.0,0.11029]
[1609530697500,0.48619712,29114.0,29106.0,1.51518]
[1609530698101,0.48619712,29114.0,29107.0,0.56339]
[1609530698502,0.48619712,29114.0,29107.0,0.36339]
[1609530698709,0.48619712,29114.0,29106.0,0.62838]
[1609530699143,0.75483865,29114.0,29106.0,0.62838]
[1609530699343,0.75483865,29114.0,29106.0,0.85338]
[1609530699745,0.48619712,29114.0,29106.0,0.84838]
[1609530701248,0.48619712,29114.0,29107.0,0.36339]
[1609530701745,0.48619712,29114.0,29106.0,1.04838]
[1609530701948,0.48619712,29114.0,29107.0,0.42]
[1609530705287,0.48619712,29114.0,29107.0,0.62]
[1609530705491,0.48619712,29114.0,29107.0,0.42]
[1609530705692,0.48619712,29114.0,29108.0,0.185]
[1609530707193,0.48619712,29114.0,29107.0,0.006533]
[1609530709290,0.48619712,29114.0,29107.0,0.078008]
[1609530709791,0.48619712,29114.0,29107.0,0.278008]
[1609530710093,0.48619712,29114.0,29108.0,0.28]
[1609530710513,0.48619712,29114.0,29109.0,1.0]
[1609530710712,0.6864,29120.0,29110.0,0.82249042]
[1609530710916,1.0,29119.0,29111.0,2.37249042]
[1609530711227,0.85810001,29125.0,29113.0,0.36339]
[1609530711418,0.75128544,29126.0,29115.0,0.6442]
[1609530711625,0.75128544,29126.0,29117.0,0.33180302]
[1609530711824,0.66548788,29127.0,29119.0,0.33180302]
[1609530711825,0.661317,29127.0,29119.0,0.33180302]
[1609530712020,0.661317,29127.0,29120.0,0.45910042]
[1609530712422,0.661317,29127.0,29119.0,0.45910042]
[1609530712617,0.661317,29127.0,29120.0,1.265]
[1609530712920,0.661317,29127.0,29121.0,0.345]
[1609530713116,0.661317,29127.0,29118.0,0.23571812]
[1609530713316,0.661317,29127.0,29119.0,1.36339]
[1609530713518,0.661317,29127.0,29121.0,0.5145]
[1609530713719,0.661317,29127.0,29122.0,0.36339]
[1609530713916,0.661317,29127.0,29123.0,0.28]
[1609530714420,0.661317,29127.0,29122.0,0.06414]
[1609530715116,0.661317,29127.0,29123.0,0.36339]
[1609530715821,0.661317,29127.0,29122.0,0.430921]
[1609530716036,0.656317,29127.0,29122.0,0.430921]
[1609530716239,0.656317,29127.0,29123.0,0.24]
[1609530716440,0.656317,29127.0,29124.0,0.363401]
[1609530716638,0.656317,29127.0,29124.0,0.513521]
[1609530717537,0.656317,29127.0,29124.0,0.508521]
[1609530718344,0.656317,29127.0,29125.0,0.17]
[1609530721534,0.363391,29126.0,29125.0,0.17]
[1609530721772,0.656317,29127.0,29124.0,0.15012]
[1609530721974,0.656317,29127.0,29123.0,0.12172]
[1609530722173,0.656317,29127.0,29124.0,0.363391]
[1609530722373,0.363391,29126.0,29124.0,0.19113]
[1609530722576,0.656317,29127.0,29124.0,0.19113]
[1609530723773,0.363391,29126.0,29124.0,0.19113]
[1609530724076,0.460993,29126.0,29124.0,0.19113]
[1609530726395,0.460993,29126.0,29125.0,0.363391]
[1609530726593,0.460993,29126.0,29125.0,0.618391]
[1609530726898,0.460993,29126.0,29125.0,1.618391]
[1609530727301,0.460993,29126.0,29125.0,1.721291]
[1609530727899,0.460993,29126.0,29125.0,4.121291]
[1609530728694,0.460993,29126.0,29125.0,1.721291]
[1609530729892,0.460993,29126.0,29125.0,2.921291]
[1609530730092,0.460993,29126.0,29125.0,1.721291]
[1609530731027,0.460993,29126.0,29125.0,3.60475912]
[1609530731223,0.460993,29126.0,29125.0,3.571291]
[1609530733524,0.460993,29126.0,29125.0,1.721291]
[1609530733727,0.460993,29126.0,29125.0,2.871291]
[1609530734127,0.460993,29126.0,29125.0,1.721291]
[1609530734813,0.460993,29126.0,29125.0,2.721291]
[1609530735014,0.460993,29126.0,29125.0,1.721291]
[1609530735218,0.460993,29126.0,29125.0,0.721291]
[1609530735420,0.824384,29126.0,29125.0,0.1029]
[1609530735817,5.624384,29126.0,29125.0,0.1029]
[1609530736022,5.624384,29126.0,29120.0,0.6582]
[1609530736218,0.363391,29125.0,29120.0,0.6582]
[1609530736423,0.34,29124.0,29120.0,0.6582]
[1609530736673,0.363391,29123.0,29120.0,0.6582]
[1609530737275,0.338391,29123.0,29120.0,0.6582]
[1609530740285,7.593383,29121.0,29120.0,0.6582]
[1609530740502,7.673383,29121.0,29113.0,0.3222]
[1609530740698,0.44730256,29120.0,29113.0,0.1029]
[1609530740901,0.343383,29119.0,29113.0,0.1029]
[1609530741099,1.05725556,29119.0,29113.0,0.1029]
[1609530741295,0.78730256,29118.0,29113.0,0.1029]
[1609530741502,0.79068556,29117.0,29113.0,0.1029]
[1609530741704,5.193383,29114.0,29113.0,0.1029]
[1609530742201,5.7931545,29114.0,29113.0,0.1029]
[1609530742701,5.7931545,29114.0,29107.0,0.109433]
[1609530742901,0.5149,29111.0,29107.0,0.109433]
[1609530743203,0.343383,29110.0,29107.0,0.109433]
[1609530745404,0.33925971,29110.0,29107.0,0.109433]
[1609530746132,0.33857297,29110.0,29107.0,0.109433]
[1609530747337,3.138554,29108.0,29107.0,0.109433]
[1609530747539,3.478554,29108.0,29107.0,0.109433]
[1609530748235,3.138554,29108.0,29107.0,0.006533]
[1609530748439,0.338554,29108.0,29107.0,0.006533]
[1609530750100,0.26863894,29121.0,29108.0,0.03346812]
[1609530750299,0.26863894,29121.0,29110.0,0.563561]
[1609530750300,1.0,29119.0,29110.0,0.563561]
[1609530750507,1.0,29119.0,29112.0,0.563561]
[1609530750707,0.718393,29126.0,29114.0,0.563561]
[1609530751005,0.460993,29126.0,29115.0,0.545]
[1609530751202,1.0,29124.0,29115.0,0.545]
[1609530751504,1.0,29124.0,29114.0,0.44730256]
[1609530751505,0.338554,29123.0,29114.0,0.2]
[1609530751701,0.460993,29126.0,29114.0,0.563561]
[1609530752006,0.85315401,29125.0,29113.0,0.92775256]